bitfinex/quotes_ETHUSD_20250814
["timestamp","ask_amount","ask_price","bid_price","bid_amount"]
[1755197698712,3.5414,4544.5,4544.3,0.9151]
[1755197698858,0.1104,4544.5,4544.4,3.11561051]
[1755197699058,0.1104,4545.2,4544.4,3.53757156]
[1755197699417,3.431,4545.1,4544.5,0.9151]
[1755197699565,0.1104,4545.2,4544.5,2.20046058]
[1755197699913,0.1104,4545.2,4544.6,0.9151]
[1755197700110,0.1104,4545.2,4544.4,2.62242554]
[1755197700262,0.4672,4547.2,4544.7,0.9151]
[1755197700481,2.19898806,4547.6,4544.8,0.9151]
[1755197700702,0.1096,4546.2,4545.6,0.1096]
[1755197700907,2.19987663,4545.8,4545.3,0.4605]
[1755197701064,3.43,4545.7,4545.2,0.1104]
[1755197701268,5.62988654,4545.7,4545.2,0.1104]
[1755197701493,3.43,4545.7,4545.2,0.1104]
[1755197701678,0.1104,4545.3,4544.8,0.4546]
[1755197701876,0.1104,4545.3,4544.9,0.9151]
[1755197702200,3.5414,4545.3,4545.0,0.9151]
[1755197702406,3.5414,4545.3,4545.1,0.4605]
[1755197702407,3.431,4545.3,4545.1,0.4605]
[1755197702558,3.431,4545.3,4544.7,2.31076333]
[1755197702875,3.431,4545.3,4545.2,0.9151]
[1755197703802,3.43,4545.6,4545.2,0.9151]
[1755197704010,3.43,4545.6,4544.8,2.20031431]
[1755197704011,0.55,4546.3,4545.3,3.13717228]
[1755197704169,0.55,4546.3,4545.1,0.1104]
[1755197704170,0.1096,4545.9,4545.4,0.9151]
[1755197704373,0.1096,4545.9,4545.5,0.9151]
[1755197704702,2.19987321,4545.8,4545.1,1.0255]
[1755197704886,3.43,4545.7,4545.5,0.4605]
[1755197705263,3.43,4545.7,4545.5,0.4546]
[1755197705462,3.43,4545.7,4545.5,0.4605]
[1755197705662,5.62992274,4545.7,4545.1,0.5709]
[1755197705896,3.43,4545.7,4545.1,0.1104]
[1755197706097,5.62989895,4545.7,4545.1,0.1104]
[1755197706579,2.68484875,4545.6,4545.1,0.1104]
[1755197706897,2.68484875,4545.6,4545.2,0.4605]
[1755197707106,2.68484875,4545.6,4545.2,0.9151]
[1755197707289,6.11484875,4545.6,4545.3,0.9151]
[1755197707494,6.11484875,4545.6,4545.1,0.1104]
[1755197707495,6.11484875,4545.6,4545.4,0.9151]
[1755197708030,6.11484875,4545.6,4545.5,0.9151]
[1755197708178,2.68484875,4545.6,4545.5,1.22662097]
[1755197708382,2.68484875,4545.6,4545.5,3.53619897]
[1755197708908,0.1096,4546.6,4545.5,1.33622097]
[1755197709092,2.79444875,4547.2,4546.5,0.1096]
[1755197709289,3.43,4547.1,4546.6,0.9151]
[1755197709489,3.43,4547.1,4546.7,0.9151]
[1755197709694,3.43,4547.1,4546.8,0.9151]
[1755197709892,3.43,4547.1,4546.5,2.54000103]
[1755197710096,3.43,4547.1,4546.9,0.9151]
[1755197710312,3.43,4547.0,4546.9,0.4546]
[1755197710537,2.68484875,4547.2,4547.0,0.4546]
[1755197710675,3.429,4547.1,4546.9,0.1096]
[1755197711001,3.429,4547.1,4547.0,0.4605]
[1755197711403,3.429,4547.1,4547.0,0.9151]
[1755197711812,3.42687929,4547.1,4547.0,0.9151]
[1755197712606,3.429,4547.1,4547.0,0.9151]
[1755197713106,3.429,4547.1,4547.0,1.23750462]
[1755197713307,3.429,4547.1,4547.0,3.43675212]
[1755197713507,3.429,4547.1,4547.0,0.77700462]
[1755197713688,3.429,4547.1,4547.0,1.23750462]
[1755197714215,3.429,4547.1,4546.9,0.1096]
[1755197714424,3.429,4547.1,4546.6,0.1096]
[1755197714586,3.429,4547.1,4546.7,0.4605]
[1755197714789,3.429,4547.1,4546.7,0.9151]
[1755197715733,3.429,4547.1,4546.6,0.1096]
[1755197716324,3.429,4547.1,4546.7,0.9151]
[1755197716493,3.429,4547.1,4546.6,0.38597346]
[1755197716494,3.429,4547.1,4546.8,0.9151]
[1755197717530,0.1096,4547.3,4546.8,0.9151]
[1755197717531,3.428,4547.0,4546.8,0.9151]
[1755197718218,3.428,4547.0,4546.6,0.38597346]
[1755197718388,2.68484875,4546.9,4546.7,0.9151]
[1755197718597,2.68484875,4546.9,4546.8,0.4605]
[1755197719211,2.68484875,4546.9,4546.8,0.9151]
[1755197719409,6.11284875,4546.9,4546.8,3.11444899]
[1755197720108,6.11284875,4546.9,4546.8,0.9151]
[1755197720294,2.68484875,4546.9,4546.8,1.23751053]
[1755197720500,2.68484875,4546.9,4546.8,0.9151]
[1755197721121,2.68484875,4546.9,4546.8,3.11444899]
[1755197721444,2.68484875,4546.9,4546.8,0.9151]
[1755197721804,2.68484875,4546.9,4546.8,2.65124899]
[1755197722007,2.68484875,4546.9,4546.6,0.1096]
[1755197722340,2.68484875,4546.9,4546.6,3.24553244]
[1755197722545,2.68484875,4546.9,4546.6,1.0461]
[1755197722744,2.68484875,4546.9,4546.8,2.19934899]
[1755197722917,2.68484875,4546.9,4546.8,3.13584899]
[1755197723521,2.68484875,4546.9,4546.8,0.9365]
[1755197723722,2.68484875,4546.9,4546.8,3.13584899]
[1755197726856,0.002,4547.0,4546.8,3.13584899]
[1755197727413,0.002,4547.0,4546.9,0.1096]
[1755197728714,0.002,4547.0,4546.9,2.30890062]
[1755197728915,0.002,4547.0,4546.9,2.85337954]
[1755197730033,0.002,4547.0,4546.9,3.30527954]
[1755197730233,0.002,4547.0,4546.9,3.78987954]
[1755197730946,2.68684875,4547.6,4546.9,3.78987954]
[1755197730947,0.002,4547.6,4547.5,2.19901044]
[1755197731253,0.002,4548.3,4548.0,2.19876868]
[1755197731459,0.002,4548.3,4548.0,9.66986868]
[1755197731641,0.002,4548.3,4548.0,6.24486868]
[1755197732061,0.002,4548.3,4548.0,5.30836868]
[1755197732428,0.002,4548.3,4548.0,6.24486868]
[1755197732623,0.002,4548.3,4548.0,7.08923929]
[1755197732962,0.002,4548.3,4548.0,6.60463929]
[1755197733269,0.002,4548.3,4548.0,7.08923929]
[1755197733625,0.002,4548.3,4548.0,6.15273929]
[1755197734334,0.002,4548.3,4548.0,3.95397061]
[1755197734745,0.002,4548.3,4548.0,6.15273929]
[1755197735154,0.002,4548.3,4548.0,7.08923929]
[1755197735526,0.002,4548.3,4548.0,6.15273929]
[1755197735732,0.002,4548.3,4548.0,7.08923929]
[1755197738967,0.002,4548.3,4548.0,6.15273929]
[1755197739170,0.002,4548.3,4548.0,9.57673929]
[1755197739338,0.002,4548.3,4548.0,8.73236868]
[1755197739534,0.002,4548.3,4548.0,9.18426868]
[1755197739866,0.002,4548.3,4548.0,9.66886868]
[1755197741373,0.002,4548.3,4548.0,9.77846868]
[1755197741560,0.002,4548.3,4548.0,10.97620199]
[1755197742335,0.002,4549.7,4549.5,2.19799659]
[1755197742537,0.002,4549.7,4549.3,3.423]
[1755197742737,0.002,4549.7,4549.6,2.30759542]
[1755197744775,0.002,4549.7,4549.6,0.1096]
[1755197744973,0.4504,4549.7,4548.5,3.422]
[1755197745159,0.1096,4549.6,4549.0,0.1096]
[1755197747972,0.1096,4549.6,4548.8,0.1096]
[1755197750176,0.55,4549.5,4548.8,0.1096]
[1755197750337,0.55,4549.5,4548.6,0.1096]
[1755197750338,0.1096,4549.3,4548.6,0.1096]
[1755197750542,0.002,4549.7,4548.0,2.19875867]
[1755197750543,2.19823861,4549.1,4548.0,2.19875867]
[1755197750743,2.5835112,4549.0,4548.4,0.1096]
[1755197751273,2.5835112,4549.0,4546.4,0.001]
[1755197751274,2.19843289,4548.7,4547.5,3.421]
[1755197751474,0.7661,4548.6,4548.1,0.1096]
[1755197751997,2.30803149,4548.7,4548.1,0.1096]
[1755197752144,0.7359,4548.5,4548.1,0.1096]
[1755197752794,0.4603,4548.5,4548.1,0.1096]
[1755197752950,0.4603,4548.4,4548.1,0.1096]
[1755197753145,2.19848334,4548.6,4544.5,0.001]
[1755197753146,2.93457116,4548.3,4547.1,2.19916539]
[1755197753347,0.55,4548.0,4546.9,0.54447892]
[1755197753656,2.93472864,4547.9,4546.8,5.62034185]
[1755197753870,0.7359,4547.9,4546.8,5.62034185]
[1755197754046,0.1096,4547.8,4547.1,0.1096]
[1755197754583,2.19895519,4547.7,4547.1,0.1096]
[1755197754785,2.19897502,4547.6,4547.1,0.1096]
[1755197755149,0.7359,4547.5,4547.1,0.1096]
[1755197755385,0.1096,4547.8,4547.1,0.1096]
[1755197756187,2.30847241,4547.8,4547.1,0.1096]
[1755197756387,2.19893561,4547.7,4547.1,0.1096]
[1755197756594,0.4316,4547.6,4547.1,0.1096]
[1755197756803,0.1096,4547.8,4547.1,0.1096]
[1755197757094,0.8919,4547.5,4547.1,0.1096]
[1755197757391,0.8919,4547.4,4547.1,0.1096]
[1755197757783,3.57674875,4547.3,4546.8,0.001]
[1755197757980,0.4316,4547.2,4546.8,0.001]
[1755197758178,2.68484875,4547.1,4546.8,0.001]
[1755197758791,2.68484875,4547.1,4546.9,0.9445]
[1755197758998,2.68484875,4547.1,4547.0,0.4745]
[1755197759296,2.68484875,4547.1,4547.0,0.9445]
[1755197759722,2.68484875,4547.1,4547.0,0.4745]
[1755197760012,2.68484875,4547.1,4547.0,3.14375225]
[1755197760161,0.002,4547.8,4547.0,4.95840989]
[1755197760356,0.002,4547.8,4547.7,2.19891373]
[1755197760594,0.002,4547.8,4547.7,3.25301373]
[1755197763674,0.002,4547.8,4547.7,0.1096]
[1755197763884,0.002,4547.8,4547.7,2.30851373]
[1755197764095,0.002,4547.8,4547.7,3.101365]
[1755197764375,0.002,4547.8,4547.7,0.90245127]
[1755197764583,0.002,4547.8,4547.7,3.101365]
[1755197764814,0.002,4547.8,4547.7,4.045865]
[1755197765016,0.002,4547.8,4547.7,0.90245127]
[1755197765185,0.002,4547.8,4547.7,3.101365]
[1755197765385,0.002,4547.8,4547.7,0.90245127]
[1755197765871,0.002,4547.8,4547.7,3.575865]
[1755197766475,0.002,4547.8,4547.7,0.1096]
[1755197766784,0.002,4547.8,4547.7,2.30851373]
[1755197767386,0.002,4547.8,4547.7,3.25301373]
[1755197768510,0.002,4547.8,4547.7,2.78301373]
[1755197768712,0.002,4547.8,4547.7,3.25301373]
[1755197768918,0.002,4547.8,4547.7,7.1403156]
[1755197770315,1e-08,4547.8,4547.7,7.1403156]
[1755197772034,0.1096,4549.5,4549.2,2.19818869]
[1755197772183,0.1096,4549.9,4549.2,5.61718869]
[1755197772381,0.1096,4549.9,4549.2,5.72678869]
[1755197773000,0.5432,4550.2,4549.2,7.33715302]
[1755197773253,0.1116,4550.2,4549.2,7.33715302]
[1755197773421,0.002,4550.2,4549.2,10.33715302]
[1755197774720,0.002,4550.2,4549.6,2.19799542]
[1755197774907,0.002,4550.2,4549.6,28.4143037]
[1755197775222,0.002,4550.2,4549.6,31.57067926]
[1755197778373,0.002,4550.2,4549.6,31.56967926]
[1755197787057,0.002,4550.2,4550.0,2.19780219]
[1755197787239,0.002,4550.2,4550.1,2.19775389]
[1755197787570,0.002,4550.2,4550.1,7.2020042]
[1755197787878,0.002,4550.7,4550.1,7.2020042]
[1755197787879,0.002,4550.7,4550.6,2.19751241]
[1755197788084,0.002,4550.7,4550.6,28.30122069]
[1755197788264,0.002,4550.7,4550.6,29.21132069]
[1755197788433,0.002,4550.7,4550.6,29.32092069]
[1755197788633,0.002,4550.7,4550.6,31.53279625]
[1755197790035,0.002,4551.1,4551.0,2.19731927]
[1755197790236,0.002,4551.1,4551.0,6.54439246]
[1755197790559,0.002,4551.6,4551.4,2.19712615]
[1755197790770,0.002,4551.6,4551.4,28.32180569]
[1755197790964,0.002,4551.6,4551.4,31.53140999]
[1755197791167,1e-08,4551.5,4551.4,31.53140999]
[1755197791353,1e-08,4551.6,4551.5,5.19707788]
[1755197791543,1e-08,4551.6,4551.5,6.33131967]
[1755197793493,1e-08,4551.6,4551.5,8.61207788]
[1755197793680,1e-08,4551.6,4551.5,9.92414584]
[1755197794363,1e-08,4551.6,4551.5,10.37604584]
[1755197794966,1e-08,4551.6,4551.5,9.92414584]
[1755197795486,1e-08,4551.6,4551.5,10.37604584]
[1755197795687,1e-08,4551.6,4551.5,9.92414584]
[1755197796191,1e-08,4551.6,4551.5,10.37604584]
[1755197796398,1e-08,4551.6,4551.5,10.83424584]
[1755197797301,1e-08,4551.6,4551.5,10.37604584]
[1755197797461,1e-08,4551.6,4551.5,9.92414584]
[1755197797961,1e-08,4551.6,4551.5,10.37604584]
[1755197798161,1e-08,4551.6,4551.5,10.83424584]
[1755197800597,1e-08,4551.6,4551.5,7.42024584]
[1755197800921,1e-08,4551.6,4551.5,10.01104384]
[1755197801120,1e-08,4551.6,4551.5,9.92314584]
[1755197801319,1e-08,4551.6,4551.5,8.61007788]
[1755197802922,1e-08,4551.6,4551.5,2.19707788]
[1755197803106,0.93880001,4551.6,4551.5,5.61007788]
[1755197803310,0.93880001,4551.6,4551.5,8.61007788]
[1755197803703,1e-08,4551.6,4551.5,8.61007788]
[1755197804732,1e-08,4551.6,4551.5,9.70176122]
[1755197805835,1e-08,4551.6,4551.5,30.2995695]
[1755197806414,1e-08,4551.6,4551.5,29.8413695]
[1755197806634,1e-08,4551.6,4551.5,29.3894695]
[1755197807037,1e-08,4551.6,4551.5,29.4990695]
[1755197807840,0.47000001,4551.6,4551.5,6.5216]
[1755197807997,0.93880001,4551.6,4551.5,3.1096]
[1755197808202,0.93880001,4551.6,4551.5,0.1096]
[1755197808664,0.93880001,4551.6,4551.2,3.412]
[1755197808985,0.9388,4551.5,4551.3,0.1096]
[1755197809267,0.9388,4551.4,4551.3,0.1096]
[1755197814986,3.62364875,4551.4,4551.3,0.1096]
[1755197815194,3.73324875,4551.4,4550.8,0.1096]
[1755197815356,0.9582,4551.3,4550.7,2.19745012]
[1755197815550,2.68484875,4551.2,4550.6,5.71907098]
[1755197815765,0.4644,4551.1,4550.6,5.71907098]
[1755197816289,0.9582,4551.0,4550.6,3.5216]
[1755197816489,0.4644,4550.9,4550.6,3.5216]
[1755197816674,2.68484875,4551.2,4550.8,2.19737307]
[1755197816991,2.68484875,4551.2,4550.7,2.19746412]
[1755197817161,2.68484875,4551.2,4550.8,0.79165859]
[1755197817366,2.68484875,4551.2,4550.6,3.412]
[1755197817367,2.68484875,4551.2,4551.1,0.1096]
[1755197817777,2.68484875,4551.2,4551.1,2.30687098]
[1755197818390,2.68484875,4551.2,4551.1,2.75977098]
[1755197818690,2.68484875,4551.2,4551.1,3.20187098]
[1755197819295,2.68484875,4551.2,4551.1,6.20187098]
[1755197819481,2.68484875,4551.2,4551.1,7.68289212]
[1755197820503,2.68484875,4551.2,4551.1,10.19889212]
[1755197820792,1e-08,4551.6,4551.5,2.19707788]
[1755197820991,1e-08,4551.6,4551.5,5.60807788]
[1755197821155,1e-08,4551.6,4551.5,5.71767788]
[1755197821561,1e-08,4551.6,4551.5,6.8091613]
[1755197823467,1e-08,4551.6,4551.5,4.61208342]
[1755197823667,1e-08,4551.6,4551.5,5.71767788]
[1755197825668,1e-08,4551.6,4551.5,6.15977788]
[1755197825869,1e-08,4551.6,4551.5,6.61267788]
[1755197828112,1e-08,4551.6,4551.5,6.15977788]
[1755197828286,1e-08,4551.6,4551.5,5.71767788]
[1755197828506,1e-08,4551.6,4551.5,6.80916112]
[1755197828707,1e-08,4551.6,4551.5,7.70416112]
[1755197832739,1e-08,4551.6,4551.5,10.70416112]
[1755197833111,1e-08,4551.6,4551.5,9.80916112]
[1755197833431,1e-08,4551.6,4551.5,8.71567788]
[1755197833605,1e-08,4551.6,4551.5,3.5186]
[1755197833799,1e-08,4551.6,4551.5,5.71567788]
[1755197835835,1e-08,4551.6,4551.5,0.1096]
[1755197836043,0.95820001,4551.6,4551.1,3.409]
[1755197836207,0.4938,4551.5,4551.2,2.30678745]
[1755197836406,1e-08,4551.6,4551.3,2.19713617]
[1755197836612,1e-08,4551.6,4551.2,2.30681076]
[1755197837313,1e-08,4551.6,4551.3,3.409]
[1755197838717,2.68484875,4551.5,4551.3,3.409]
[1755197842267,2.68484875,4551.5,4551.2,0.1096]
[1755197842446,2.68484875,4551.5,4551.3,3.409]
[1755197842610,3.12384875,4551.5,4551.3,3.409]
[1755197843392,2.68484875,4551.5,4551.3,3.409]
[1755197843510,2.68484875,4551.5,4551.4,3.408]
[1755197844739,3.58594875,4551.5,4551.4,3.408]
[1755197845248,2.68484875,4551.5,4551.4,3.408]
[1755197845449,2.68484875,4551.5,4551.4,5.60512615]
[1755197845848,2.68484875,4551.5,4551.4,3.408]
[1755197846347,2.68484875,4551.5,4551.4,5.60512615]
[1755197847150,2.68484875,4551.5,4551.4,6.95492006]
[1755197847351,2.68484875,4551.5,4551.4,7.42792006]
[1755197848559,2.68484875,4551.5,4551.4,16.26901428]
[1755197848963,1e-08,4551.6,4551.5,2.19707788]
[1755197849341,1e-08,4551.6,4551.5,3.11897788]
[1755197849683,1e-08,4551.6,4551.5,4.0436871]
[1755197849877,1e-08,4551.6,4551.5,1.84660922]
[1755197850088,1e-08,4551.6,4551.5,2.19707788]
[1755197850232,1e-08,4551.6,4551.5,5.60507788]
[1755197851435,1e-08,4551.6,4551.5,2.19707788]
[1755197851640,1e-08,4551.6,4551.5,5.60407788]
[1755197852383,1e-08,4551.6,4551.5,3.407]
[1755197852554,1e-08,4551.6,4551.5,5.60407788]
[1755197853791,1e-08,4551.6,4551.5,3.407]
[1755197853956,1e-08,4551.6,4551.5,5.60407788]
[1755197854356,1e-08,4551.6,4551.5,3.407]
[1755197854656,1e-08,4551.6,4551.5,5.60407788]
[1755197855790,1e-08,4551.6,4551.5,6.52597788]
[1755197855989,1e-08,4551.6,4551.5,8.29336249]
[1755197857891,1e-08,4551.6,4551.5,7.37146249]
[1755197858054,1e-08,4551.6,4551.5,5.60407788]
[1755197859663,1e-08,4551.6,4551.5,5.60507788]
[1755197859978,1e-08,4551.6,4551.5,0.001]
[1755197860181,1e-08,4551.6,4551.5,5.60407788]
[1755197860972,1e-08,4551.6,4551.5,3.407]
[1755197861373,1e-08,4551.6,4551.5,5.60407788]
[1755197863663,1e-08,4551.6,4551.5,3.407]
[1755197864102,1e-08,4551.6,4551.5,5.60407788]
[1755197864465,1e-08,4551.6,4551.5,3.407]
[1755197866262,1e-08,4551.6,4551.5,5.60407788]
[1755197867801,1e-08,4551.6,4551.5,3.407]
[1755197868211,1e-08,4551.6,4551.5,5.87682764]
[1755197868363,1e-08,4551.6,4551.5,6.77675687]
[1755197870219,1e-08,4551.6,4551.5,7.43607787]
[1755197870898,1e-08,4551.6,4551.5,10.43607787]
[1755197879176,0.002,4552.5,4552.4,2.19664352]
[1755197879371,0.9287,4554.2,4552.5,2.19659527]
[1755197879572,0.9287,4554.2,4552.8,2.19645053]
[1755197879573,0.4617,4554.2,4552.8,2.19645053]
[1755197879851,0.4617,4554.2,4552.8,6.52655053]
[1755197880152,0.1096,4554.3,4552.8,4.0367]
[1755197880299,0.5766,4554.6,4553.8,8.84109422]
[1755197880500,0.5766,4554.6,4554.0,0.1096]
[1755197880697,0.4617,4554.5,4554.1,3.403]
[1755197880915,0.9287,4554.4,4554.1,3.403]
[1755197881141,0.9287,4554.3,4554.1,3.403]
[1755197881340,0.1096,4554.6,4554.0,3.5116]
[1755197881542,0.9287,4554.2,4554.0,3.5116]
[1755197881935,0.4617,4554.1,4554.0,0.1096]
[1755197882245,0.9287,4554.1,4553.8,3.402]
[1755197882545,0.9287,4554.0,4553.2,2.19621419]
[1755197882717,0.9287,4553.9,4553.4,0.1096]
[1755197882915,0.9287,4553.9,4553.4,3.5116]
[1755197883114,0.9287,4553.8,4553.4,0.1096]
[1755197883319,0.467,4553.8,4553.5,3.402]
[1755197883541,0.4617,4553.7,4553.5,3.402]
[1755197884747,0.9287,4553.6,4552.6,3.402]
[1755197884924,0.4617,4553.5,4553.0,0.1096]
[1755197885246,0.4617,4553.5,4552.4,2.19663504]
[1755197885247,2.74616301,4553.4,4552.6,0.467]
[1755197885413,0.1096,4553.1,4552.4,2.30623457]
[1755197885748,0.4617,4553.0,4552.5,3.401]
[1755197886054,0.4617,4552.9,4552.5,3.401]
[1755197886606,0.9287,4552.8,4552.4,0.1096]
[1755197886812,0.1096,4552.8,4552.2,3.5106]
[1755197887025,0.9287,4552.7,4552.2,0.1096]
[1755197887225,0.9287,4552.7,4551.5,0.001]
[1755197887226,0.9287,4552.6,4551.5,0.001]
[1755197887444,0.1096,4552.4,4551.7,0.1096]
[1755197887649,0.1096,4552.4,4551.7,2.30656993]
[1755197887848,0.1096,4552.4,4551.7,0.1096]
[1755197888038,0.1096,4552.4,4551.7,4.7415692]
[1755197888255,0.1096,4552.4,4551.8,2.19693308]
[1755197888837,0.1096,4552.4,4551.7,3.5106]
[1755197889360,0.1096,4552.4,4551.7,5.70757692]
[1755197889563,0.1096,4552.4,4551.8,2.19692945]
[1755197890344,0.1096,4552.4,4551.7,5.70756943]
[1755197891454,0.4617,4552.3,4551.7,3.5106]
[1755197892162,0.4617,4552.3,4551.7,5.70754291]
[1755197892344,0.4617,4552.3,4551.8,2.19692473]
[1755197893178,0.5766,4552.4,4551.8,2.19692473]
[1755197893179,2.68484875,4552.2,4551.8,2.19692473]
[1755197893335,2.68484875,4552.2,4551.9,2.19687852]
[1755197893834,2.68484875,4552.2,4551.7,3.5106]
[1755197894173,2.68484875,4552.2,4551.7,5.70756411]
[1755197894466,2.68484875,4552.2,4551.8,2.19692587]
[1755197894868,2.68484875,4552.2,4551.7,3.5106]
[1755197894869,2.68484875,4552.2,4551.7,5.70757259]
[1755197895066,2.68484875,4552.2,4551.8,2.19693308]
[1755197896082,2.68484875,4552.2,4551.7,3.5106]
[1755197896248,2.68484875,4552.2,4551.8,2.19693308]
[1755197896974,2.68484875,4552.2,4551.9,2.19688081]
[1755197897470,2.68484875,4552.2,4552.0,5.59683193]
[1755197897683,2.68484875,4552.2,4552.1,2.19678829]
[1755197897838,2.68484875,4552.2,4552.0,3.4]
[1755197898033,2.68484875,4552.2,4551.7,0.1096]
[1755197898467,0.9287,4552.1,4551.7,0.1096]
[1755197898771,0.1096,4551.9,4551.5,0.001]
[1755197899159,0.4617,4551.8,4551.5,0.001]
[1755197899550,0.5766,4551.9,4551.5,0.001]
[1755197899872,0.1096,4551.9,4551.5,0.001]
[1755197900559,3.61354875,4551.8,4551.5,0.001]
[1755197900762,3.14654875,4551.8,4551.5,0.001]
[1755197901064,0.9287,4551.7,4551.5,0.001]
[1755197901578,3.67568134,4551.7,4551.5,0.001]
[1755197902081,2.68484875,4551.8,4551.5,0.001]
[1755197902281,0.55,4552.5,4551.5,0.001]
[1755197902485,3.22088527,4552.4,4551.5,0.001]
[1755197902850,0.55,4552.2,4551.5,0.001]
[1755197903051,2.19684742,4552.0,4551.5,0.001]
[1755197903258,0.4742,4551.9,4551.5,0.001]
[1755197903663,1.0242,4552.4,4551.5,0.001]
[1755197903959,2.74665518,4552.4,4551.5,0.001]
[1755197904500,2.74665518,4552.4,4550.1,0.001]
[1755197904708,2.74814037,4549.3,4547.6,0.001]
[1755197905000,5.74838199,4548.8,4547.6,0.001]
[1755197905347,6.43599608,4548.8,4547.6,0.001]
[1755197905547,10.6176282,4548.8,4547.6,0.001]
[1755197905773,2.74862366,4548.3,4547.6,0.001]
[1755197906002,9.92923775,4548.3,4547.6,0.001]
[1755197906150,10.41243775,4548.3,4547.6,0.001]
[1755197906349,10.61641697,4548.3,4547.6,0.001]
[1755197906549,2.74881703,4547.9,4547.6,0.001]
[1755197909252,2.95193197,4547.9,4547.6,0.001]
[1755197909483,2.74881703,4547.9,4547.6,0.001]
[1755197909693,2.95193422,4547.9,4547.6,0.001]
[1755197909849,5.81193422,4547.9,4547.6,0.001]
[1755197910051,12.31093422,4547.9,4547.6,0.001]
[1755197910274,12.31093422,4547.9,4546.8,0.001]
[1755197910275,2.74920388,4547.1,4546.8,1e-08]
[1755197910463,5.74930062,4546.9,4546.8,1e-08]
[1755197910682,7.11277595,4546.9,4546.8,1e-08]
[1755197911191,10.61377595,4546.9,4546.8,1e-08]
[1755197911380,9.65537595,4546.9,4546.8,1e-08]
[1755197911560,6.15537595,4546.9,4546.8,1e-08]
[1755197911762,9.65437595,4546.9,4546.8,1e-08]
[1755197911962,10.61177595,4546.9,4546.8,1e-08]
[1755197912473,10.72137595,4546.9,4546.8,1e-08]
[1755197912875,9.76397595,4546.9,4546.8,1e-08]
[1755197913658,6.26497595,4546.9,4546.8,1e-08]
[1755197913859,9.76097595,4546.9,4546.8,1e-08]
[1755197914894,6.26497595,4546.9,4546.8,1e-08]
[1755197915070,9.76097595,4546.9,4546.8,1e-08]
[1755197915494,10.23517595,4546.9,4546.8,1e-08]
[1755197915695,10.71837595,4546.9,4546.8,1e-08]
[1755197916011,10.71737595,4546.9,4546.8,1e-08]
[1755197916307,10.71737595,4546.9,4545.5,0.1096]
[1755197916308,2.314,4546.7,4541.7,0.11482768]
[1755197916609,2.20177022,4541.8,4541.7,0.20293568]
[1755197916757,2.20177022,4541.8,4541.5,0.4495]
[1755197916758,2.20186718,4541.6,4541.5,0.4495]
[1755197916959,3.557,4541.9,4541.5,0.9035]
[1755197917158,3.557,4541.8,4541.6,0.9035]
[1755197917367,2.20139565,4542.6,4541.7,3.10530406]
[1755197917560,3.0,4543.2,4541.7,3.10530406]
[1755197917561,3.0,4542.4,4541.8,0.4495]
[1755197917762,3.55,4543.2,4539.6,0.4495]
[1755197917763,3.0,4542.2,4539.6,0.4495]
[1755197917967,2.20167441,4542.0,4541.4,0.4495]
[1755197918169,0.55,4541.8,4540.7,0.4505]
[1755197918398,3.559,4541.7,4540.8,2.6562551]
[1755197918712,0.40353653,4541.6,4540.9,2.96236546]
[1755197918928,0.20176373,4541.5,4541.0,0.4495]
[1755197919067,3.56,4541.4,4541.1,0.9035]
[1755197919269,2.20127453,4542.9,4540.7,0.001]
[1755197919270,5.7522551,4540.8,4540.7,0.001]
[1755197919464,5.95371591,4540.8,4540.7,0.001]
[1755197919705,9.75221182,4540.8,4540.7,0.001]
[1755197920107,10.22641182,4540.8,4540.7,0.001]
[1755197920311,10.70961182,4540.8,4540.7,0.001]
[1755197920470,7.11261182,4540.8,4540.7,0.001]
[1755197920811,2.20235211,4540.6,4539.1,0.454]
[1755197921142,2.20235211,4540.6,4536.2,2.20446153]
[1755197921143,0.55,4540.3,4538.5,0.4495]
[1755197921315,0.55,4540.1,4539.0,0.4495]
[1755197921484,0.40295672,4540.0,4539.0,0.4495]
[1755197921826,0.20146081,4539.9,4539.1,0.454]
[1755197922020,0.20146081,4539.8,4539.4,2.20291936]
[1755197922221,3.6,4539.7,4539.5,0.22029194]
[1755197922373,3.6,4539.7,4539.6,0.9035]
[1755197922566,0.55,4540.4,4539.6,0.9035]
[1755197922826,0.55,4540.6,4539.6,0.4495]
[1755197922986,3.0,4540.4,4539.6,0.9035]
[1755197923187,3.0,4540.2,4539.6,0.9035]
[1755197923387,0.55,4540.0,4539.2,0.4495]
[1755197923644,0.20036912,4540.4,4539.2,0.4495]
[1755197923792,3.55,4540.2,4539.2,0.4495]
[1755197923995,3.55,4540.2,4537.6,3.0]
[1755197923996,3.0,4540.2,4537.6,3.0]
[1755197924285,3.0,4540.2,4537.9,2.20361476]
[1755197924286,0.55,4540.0,4537.9,2.20361476]
[1755197924502,3.67457633,4540.1,4537.7,3.11537556]
[1755197924503,0.68357633,4539.9,4537.7,0.454]
[1755197924810,0.55,4539.6,4537.8,0.4495]
[1755197925028,3.0,4539.5,4537.9,0.454]
[1755197925234,3.55,4539.1,4537.9,0.454]
[1755197925407,3.0,4538.9,4537.9,0.76471927]
[1755197925607,0.55,4539.6,4538.0,0.4495]
[1755197925790,0.55,4539.4,4538.0,0.9035]
[1755197926157,0.55,4539.1,4538.0,0.9035]
[1755197926288,3.0,4539.6,4538.1,0.4495]
[1755197926489,0.11499698,4541.1,4538.8,2.20317916]
[1755197926490,2.20235211,4540.6,4538.8,2.20317916]
[1755197926718,2.20235211,4540.6,4538.2,0.454]
[1755197926719,0.1104,4539.7,4539.0,2.31352485]
[1755197926918,3.617,4539.6,4539.1,0.4495]
[1755197927236,3.617,4539.6,4539.2,0.4495]
[1755197927393,0.1104,4539.2,4538.8,0.454]